[Event "RUS-chT Blitz Men 2018"]
[Site "Sochi"]
[Date "2018.10.10"]
[Round "9"]
[White "Nuristani, Iman"]
[Black "Gogolev, Artem"]
[Result "1/2-1/2"]
[ECO "E24"]
[WhiteElo "2242"]
[BlackElo "2389"]
[Annotator "NA RC"]
[PlyCount "220"]
[EventDate "2018.10.10"]
[EventType "swiss"]
[EventCountry "RUS"]
[SourceTitle "playchess.com"]
[Source "ChessBase"]
[SourceQuality "1"]
[TimeControl "180+2"]

1. d4 {[%emt 0:00:00]} Nf6 {[%emt 0:00:00]} 2. c4 {[%emt 0:00:00]} e6 {[%emt 0:00:01]} 3. Nc3 {[%emt 0:00:00]} Bb4 {[%emt 0:00:02]} 4. a3 {[%emt 0:00:01]} Bxc3+ {[%emt 0:00:02]} 5. bxc3 {[%emt 0:00:01]} d6 {[%emt 0:00:01]} 6. e3 {[%emt 0:00:03]} b6 {[%emt 0:00:06]} 7. Bd3 {[%emt 0:00:01]} Bb7 {[%emt 0:00:02]} 8. f3 {[%emt 0:00:01]} Nfd7 {[%emt 0:00:08]} 9. Ne2 {[%emt 0:00:08]} f5 {[%emt 0:00:03]} 10. e4 {[%emt 0:00:15]} Qh4+ {[%emt 0:00:07]} 11. g3 {[%emt 0:00:08]} Qf6 {[%emt 0:00:01]} 12. Be3 {[%emt 0:00:23]} c5 {[%emt 0:00:02]} 13. Qd2 {[%emt 0:00:07]} O-O {[%emt 0:00:17]} 14. Bg5 {[%emt 0:00:14]} Qf7 {[%emt 0:00:01]} 15. O-O {[%emt 0:00:42]} Nc6 {[%emt 0:00:03]} 16. exf5 {[%emt 0:00:25]} exf5 {[%emt 0:00:02]} 17. Bf4 {[%emt 0:00:00]} Qf6 {[%emt 0:00:11]} 18. Bg5 {[%emt 0:00:07]} Qf7 {[%emt 0:00:01]} 19. Bf4 {[%emt 0:00:01]} Qf6 {[%emt 0:00:21]} 20. Bg5 {[%emt 0:00:01]} Qf7 {[%emt 0:00:09]} 21. Bf4 {[%emt 0:00:03]} Qf6 {[%emt 0:00:35]} 22. Bg5 {[%emt 0:00:37]} Qf7 {[%emt 0:00:20]} 23. Bf4 {[%emt 0:00:07]} Qf6 {[%emt 0:00:31]} 24. Bc2 {[%emt 0:00:03]} Rfe8 {[%emt 0:00:10]} 25. Rae1 {[%emt 0:00:03]} Na5 {[%emt 0:00:07]} 26. dxc5 {[%emt 0:00:04]} Nxc5 {[%emt 0:00:01]} 27. Qxd6 {[%emt 0:00:05]} Qxd6 {[%emt 0:00:02]} 28. Bxd6 {[%emt 0:00:00]} Rad8 {[%emt 0:00:07]} 29. Bf4 {[%emt 0:00:08]} g6 {[%emt 0:00:05]} 30. Nd4 {[%emt 0:00:01]} Nxc4 {[%emt 0:00:04]} 31. Bg5 {[%emt 0:00:01]} Rc8 {[%emt 0:00:03]} 32. a4 {[%emt 0:00:06]} Kf7 {[%emt 0:00:03]} 33. Bb1 {[%emt 0:00:03]} Kg7 {[%emt 0:00:06]} 34. Bc2 {[%emt 0:00:01]} Bd5 {[%emt 0:00:03]} 35. Nb5 {[%emt 0:00:03]} a6 {[%emt 0:00:04]} 36. Rxe8 {[%emt 0:00:01]} Rxe8 {[%emt 0:00:01]} 37. Nc7 {[%emt 0:00:00]} Re2 {[%emt 0:00:03]} 38. Bxf5 {[%emt 0:00:02]} gxf5 {[%emt 0:00:03]} 39. Nxd5 {[%emt 0:00:01]} Nxa4 {[%emt 0:00:03]} 40. Bf6+ {[%emt 0:00:01]} Kf7 {[%emt 0:00:01]} 41. Bd4 {[%emt 0:00:00]} Nc5 {[%emt 0:00:02]} 42. Nxb6 {[%emt 0:00:02]} Nxb6 {[%emt 0:00:01]} 43. Bxc5 {[%emt 0:00:01]} Nd5 {[%emt 0:00:01]} 44. Bd4 {[%emt 0:00:03]} Ne3 {[%emt 0:00:01]} 45. Bxe3 Rxe3 {[%emt 0:00:01]} 46. Ra1 {[%emt 0:00:03]} Rxf3 {[%emt 0:00:02]} 47. Rxa6 {[%emt 0:00:02]} Rxc3 {[%emt 0:00:01]} 48. Ra7+ {[%emt 0:00:01]} Kg6 {[%emt 0:00:01]} 49. Kg2 {[%emt 0:00:04]} Rb3 {[%emt 0:00:03]} 50. h4 {[%emt 0:00:05]} h6 {[%emt 0:00:03]} 51. Ra6+ {[%emt 0:00:02]} Kg7 {[%emt 0:00:00]} 52. Ra7+ {[%emt 0:00:02]} Kg6 {[%emt 0:00:01]} 53. Ra6+ {[%emt 0:00:01]} Kg7 {[%emt 0:00:04]} 54. h5 {[%emt 0:00:03]} Rc3 {[%emt 0:00:06]} 55. Rg6+ {[%emt 0:00:03]} Kh7 {[%emt 0:00:01]} 56. Rf6 {[%emt 0:00:00]} Rc5 {[%emt 0:00:01]} 57. Kf3 {[%emt 0:00:01]} Kg7 {[%emt 0:00:01]} 58. Rg6+ {[%emt 0:00:00]} Kh7 {[%emt 0:00:02]} 59. Kf4 {[%emt 0:00:01]} Rb5 {[%emt 0:00:07]} 60. Rf6 {[%emt 0:00:01]} Kg7 {[%emt 0:00:01]} 61. Rxf5 {[%emt 0:00:02]} Rb4+ {[%emt 0:00:03]} 62. Kf3 {[%emt 0:00:02]} Ra4 {[%emt 0:00:02]} 63. Re5 {[%emt 0:00:03]} Kf6 {[%emt 0:00:02]} 64. Rb5 {[%emt 0:00:01]} Rc4 {[%emt 0:00:02]} 65. Rb6+ {[%emt 0:00:03]} Kg5 {[%emt 0:00:02]} 66. Rb5+ {[%emt 0:00:08]} Kf6 {[%emt 0:00:01]} 67. Rb6+ {[%emt 0:00:01]} Kg5 {[%emt 0:00:01]} 68. Rb5+ {[%emt 0:00:01]} Kf6 {[%emt 0:00:01]} 69. Rd5 {[%emt 0:00:00]} Rb4 {[%emt 0:00:02]} 70. Ra5 {[%emt 0:00:09]} Rc4 {[%emt 0:00:01]} 71. Ra8 {[%emt 0:00:01]} Kg5 {[%emt 0:00:04]} 72. Ra5+ {[%emt 0:00:03]} Kf6 {[%emt 0:00:01]} 73. Rb5 {[%emt 0:00:01]} Ra4 {[%emt 0:00:02]} 74. Rb6+ {[%emt 0:00:05]} Kg5 {[%emt 0:00:01]} 75. Rb5+ {[%emt 0:00:00]} Kf6 76. g4 Ra3+ 77. Kf4 Ra4+ 78. Kg3 Kg7 {[%emt 0:00:14]} 79. Rb7+ {[%emt 0:00:02]} Kg8 {[%emt 0:00:02]} 80. Rb6 {[%emt 0:00:01]} Kg7 {[%emt 0:00:01]} 81. Rg6+ {[%emt 0:00:00]} Kh7 {[%emt 0:00:00]} 82. Re6 {[%emt 0:00:01]} Kg7 {[%emt 0:00:01]} 83. Kf3 {[%emt 0:00:01]} Rb4 {[%emt 0:00:02]} 84. Re4 {[%emt 0:00:01]} Rb5 {[%emt 0:00:02]} 85. Kf4 {[%emt 0:00:01]} Kf6 {[%emt 0:00:01]} 86. Rc4 {[%emt 0:00:01]} Rb6 {[%emt 0:00:01]} 87. Rc7 {[%emt 0:00:06]} Rb4+ {[%emt 0:00:01]} 88. Kg3 {[%emt 0:00:01]} Rb6 {[%emt 0:00:09]} 89. Rh7 {[%emt 0:00:02]} Ke5 {[%emt 0:00:02]} 90. Re7+ {[%emt 0:00:03]} Kf6 {[%emt 0:00:01]} 91. Rh7 {[%emt 0:00:01]} Ke5 {[%emt 0:00:01]} 92. Kh4 {[%emt 0:00:05]} Ra6 {[%emt 0:00:05]} 93. Rg7 {[%emt 0:00:03]} Rc6 {[%emt 0:00:02]} 94. Re7+ {[%emt 0:00:08]} Kf6 {[%emt 0:00:02]} 95. Rh7 {[%emt 0:00:00]} Ke5 {[%emt 0:00:01]} 96. Rh8 {[%emt 0:00:03]} Rb6 {[%emt 0:00:02]} 97. Rh7 {[%emt 0:00:01]} Ra6 {[%emt 0:00:02]} 98. Rf7 {[%emt 0:00:03]} Rb6 {[%emt 0:00:02]} 99. Rf5+ {[%emt 0:00:01]} Ke6 {[%emt 0:00:01]} 100. Ra5 {[%emt 0:00:02]} Kf6 {[%emt 0:00:01]} 101. Ra7 {[%emt 0:00:02]} Rc6 {[%emt 0:00:02]} 102. Rh7 {[%emt 0:00:03]} Ke5 {[%emt 0:00:01]} 103. Rg7 {[%emt 0:00:01]} Rb6 {[%emt 0:00:02]} 104. Rg6 {[%emt 0:00:05]} Rxg6 {[%emt 0:00:01]} 105. hxg6 {[%emt 0:00:01]} Kf6 {[%emt 0:00:01]} 106. Kh5 {[%emt 0:00:00]} Kg7 {[%emt 0:00:01]} 107. g5 {[%emt 0:00:01]} hxg5 {[%emt 0:00:01]} 108. Kxg5 {[%emt 0:00:01]} Kg8 {[%emt 0:00:01]} 109. Kh6 {[%emt 0:00:01]} Kh8 {[%emt 0:00:00]} 110. g7+ {[%emt 0:00:00]} Kg8 {[%emt 0:00:01]} 1/2-1/2

[Event "RUS-chT Blitz Men 2018"]
[Site "Sochi"]
[Date "2018.10.10"]
[Round "9"]
[White "Kretov, Evgenij"]
[Black "Klimentov, Evgeny"]
[Result "1-0"]
[ECO "A10"]
[WhiteElo "2219"]
[BlackElo "2135"]
[Annotator "NA"]
[PlyCount "76"]
[EventDate "2018.10.10"]
[EventType "swiss"]
[EventCountry "RUS"]
[SourceTitle "playchess.com"]
[Source "ChessBase"]
[SourceQuality "1"]
[TimeControl "180+2"]

1. c4 {[%emt 0:00:00]} d6 {[%emt 0:00:00]} 2. Nc3 {[%emt 0:00:01]} g6 {[%emt 0:00:00]} 3. g3 {[%emt 0:00:01]} Bg7 {[%emt 0:00:00]} 4. Bg2 {[%emt 0:00:01]} Nd7 {[%emt 0:00:01]} 5. Nf3 {[%emt 0:00:03]} e5 {[%emt 0:00:01]} 6. O-O {[%emt 0:00:02]} Ne7 {[%emt 0:00:00]} 7. Rb1 {[%emt 0:00:01]} O-O {[%emt 0:00:02]} 8. b4 {[%emt 0:00:01]} f5 {[%emt 0:00:00]} 9. d4 {[%emt 0:00:15]} exd4 {[%emt 0:00:04]} 10. Nxd4 {[%emt 0:00:02]} Ne5 {[%emt 0:00:01]} 11. Qb3 {[%emt 0:00:09]} c5 {[%emt 0:00:08]} 12. Nf3 {[%emt 0:00:09]} Nxf3+ {[%emt 0:00:18]} 13. Bxf3 {[%emt 0:00:02]} Nc6 {[%emt 0:00:01]} 14. bxc5 {[%emt 0:00:12]} dxc5 {[%emt 0:00:03]} 15. e3 {[%emt 0:00:04]} Na5 {[%emt 0:00:28]} 16. Qc2 {[%emt 0:00:12]} Be6 {[%emt 0:00:08]} 17. Nd5 {[%emt 0:00:02]} b6 {[%emt 0:00:25]} 18. Rd1 {[%emt 0:00:13]} Rb8 {[%emt 0:00:53]} 19. Nf4 {[%emt 0:00:27]} Bd7 {[%emt 0:00:01]} 20. Bd2 {[%emt 0:00:24]} Qe8 {[%emt 0:00:21]} 21. Bxa5 {[%emt 0:00:05]} Ba4 {[%emt 0:00:01]} 22. Qd2 {[%emt 0:00:20]} Bxd1 {[%emt 0:00:05]} 23. Bd5+ {[%emt 0:00:07]} Kh8 {[%emt 0:00:01]} 24. Rxd1 {[%emt 0:00:07]} bxa5 {[%emt 0:00:01]} 25. Qxa5 {[%emt 0:00:01]} Qe7 {[%emt 0:00:19]} 26. h4 {[%emt 0:00:28]} Be5 {[%emt 0:00:08]} 27. Ne6 {[%emt 0:00:02]} Rfe8 {[%emt 0:00:03]} 28. Qxc5 {[%emt 0:00:06]} Qf6 {[%emt 0:00:12]} 29. Ng5 {[%emt 0:00:06]} Kg7 {[%emt 0:00:03]} 30. Qxa7+ {[%emt 0:00:03]} Re7 {[%emt 0:00:02]} 31. Qa4 {[%emt 0:00:06]} Rb2 {[%emt 0:00:01]} 32. Rf1 {[%emt 0:00:05]} Bxg3 {[%emt 0:00:04]} 33. fxg3 {[%emt 0:00:03]} Qe5 {[%emt 0:00:02]} 34. Rf3 {[%emt 0:00:03]} Qc3 {[%emt 0:00:06]} 35. Qd1 {[%emt 0:00:02]} Rxe3 {[%emt 0:00:01]} 36. Ne6+ {[%emt 0:00:02]} Kh6 {[%emt 0:00:05]} 37. Nf4 {[%emt 0:00:03]} Rxf3 {[%emt 0:00:05]} 38. Bxf3 {[%emt 0:00:02]} Qe3+ {[%emt 0:00:02]} 1-0

[Event "RUS-chT Blitz Men 2018"]
[Site "Sochi"]
[Date "2018.10.10"]
[Round "9"]
[White "Dudin, Gleb"]
[Black "Derjabin, Ilja"]
[Result "1-0"]
[ECO "A53"]
[WhiteElo "2178"]
[BlackElo "2345"]
[Annotator "NA"]
[PlyCount "79"]
[EventDate "2018.10.10"]
[EventType "swiss"]
[EventCountry "RUS"]
[SourceTitle "playchess.com"]
[Source "ChessBase"]
[SourceQuality "1"]
[TimeControl "180+2"]

1. d4 {[%emt 0:00:00]} Nf6 {[%emt 0:00:00]} 2. c4 {[%emt 0:00:00]} d6 {[%emt 0:00:00]} 3. Nc3 {[%emt 0:00:02]} Bf5 {[%emt 0:00:00]} 4. Nf3 {[%emt 0:00:06]} Nbd7 {[%emt 0:00:02]} 5. e3 {[%emt 0:00:01]} e5 {[%emt 0:00:02]} 6. Be2 {[%emt 0:00:01]} h6 {[%emt 0:00:03]} 7. O-O Be7 8. b4 {[%emt 0:00:13]} O-O {[%emt 0:00:05]} 9. Bb2 {[%emt 0:00:02]} Re8 {[%emt 0:00:02]} 10. Qb3 {[%emt 0:00:07]} e4 {[%emt 0:00:06]} 11. Nd2 {[%emt 0:00:01]} Nf8 {[%emt 0:00:09]} 12. Rfc1 {[%emt 0:00:02]} Ng6 {[%emt 0:00:03]} 13. Qd1 {[%emt 0:00:14]} Qd7 {[%emt 0:00:04]} 14. h3 {[%emt 0:00:22]} Bf8 {[%emt 0:00:11]} 15. Bf1 {[%emt 0:00:03]} Nh4 {[%emt 0:00:10]} 16. Nb3 {[%emt 0:00:22]} g5 {[%emt 0:00:03]} 17. d5 {[%emt 0:00:11]} g4 {[%emt 0:00:04]} 18. hxg4 {[%emt 0:00:15]} Bxg4 {[%emt 0:00:03]} 19. Ne2 {[%emt 0:00:18]} Nh5 {[%emt 0:00:11]} 20. Qe1 {[%emt 0:00:25]} Bf3 {[%emt 0:00:14]} 21. Ng3 {[%emt 0:00:19]} Qg4 {[%emt 0:00:16]} 22. Nd2 {[%emt 0:00:12]} Bg7 {[%emt 0:00:10]} 23. Bxg7 {[%emt 0:00:06]} Kxg7 {[%emt 0:00:00]} 24. gxf3 {[%emt 0:00:07]} exf3 {[%emt 0:00:08]} 25. Kh2 {[%emt 0:00:07]} Re5 {[%emt 0:00:07]} 26. Bh3 {[%emt 0:00:05]} Qg5 {[%emt 0:00:01]} 27. Qg1 {[%emt 0:00:07]} Kh8 {[%emt 0:00:10]} 28. Nxh5 {[%emt 0:00:03]} Qxh5 {[%emt 0:00:01]} 29. Qg4 {[%emt 0:00:02]} Rg8 {[%emt 0:00:07]} 30. Qxh5 Rxh5 {[%emt 0:00:01]} 31. Rg1 {[%emt 0:00:02]} Ng6 {[%emt 0:01:06]} 32. Nxf3 {[%emt 0:00:03]} Re8 {[%emt 0:00:01]} 33. Rg3 {[%emt 0:00:03]} Re4 {[%emt 0:00:01]} 34. Nd2 {[%emt 0:00:03]} Reh4 {[%emt 0:00:03]} 35. Kg2 {[%emt 0:00:01]} f5 {[%emt 0:00:03]} 36. f4 {[%emt 0:00:03]} Ne7 {[%emt 0:00:04]} 37. Nf3 {[%emt 0:00:00]} Ng6 {[%emt 0:00:02]} 38. Nxh4 {[%emt 0:00:02]} Nxh4+ {[%emt 0:00:01]} 39. Kf2 {[%emt 0:00:01]} Ng6 {[%emt 0:00:03]} 40. Rxg6 {[%emt 0:00:01]} 1-0

[Event "RUS-chT Blitz Men 2018"]
[Site "Sochi"]
[Date "2018.10.10"]
[Round "9"]
[White "Rudakov, Sergey S."]
[Black "Kostin, Alexey"]
[Result "0-1"]
[ECO "B42"]
[WhiteElo "1733"]
[BlackElo "2253"]
[Annotator "NA"]
[PlyCount "86"]
[EventDate "2018.10.10"]
[EventType "swiss"]
[EventCountry "RUS"]
[SourceTitle "playchess.com"]
[Source "ChessBase"]
[SourceQuality "1"]
[TimeControl "180+2"]

1. e4 {[%emt 0:00:00]} c5 {[%emt 0:00:00]} 2. Nf3 {[%emt 0:00:01]} e6 {[%emt 0:00:00]} 3. d4 {[%emt 0:00:01]} cxd4 4. Nxd4 {[%emt 0:00:02]} a6 {[%emt 0:00:00]} 5. Bd3 {[%emt 0:00:01]} Bc5 {[%emt 0:00:03]} 6. Nb3 {[%emt 0:00:02]} Ba7 {[%emt 0:00:00]} 7. O-O {[%emt 0:00:02]} Nc6 {[%emt 0:00:01]} 8. Nc3 {[%emt 0:00:02]} Nf6 {[%emt 0:00:03]} 9. Bg5 {[%emt 0:00:02]} Ne5 {[%emt 0:00:14]} 10. Be2 {[%emt 0:00:06]} d6 {[%emt 0:00:05]} 11. Qd2 {[%emt 0:00:10]} b5 {[%emt 0:00:18]} 12. a3 {[%emt 0:00:20]} Bb7 {[%emt 0:00:07]} 13. Rad1 {[%emt 0:00:03]} Bb8 {[%emt 0:00:15]} 14. f4 {[%emt 0:00:02]} Ned7 {[%emt 0:00:22]} 15. Bf3 {[%emt 0:00:01]} O-O {[%emt 0:00:05]} 16. e5 {[%emt 0:00:26]} Qb6+ {[%emt 0:00:01]} 17. Kh1 {[%emt 0:00:03]} Bxf3 {[%emt 0:00:17]} 18. Rxf3 {[%emt 0:00:13]} dxe5 {[%emt 0:00:02]} 19. Bxf6 {[%emt 0:00:18]} Nxf6 {[%emt 0:00:04]} 20. Rd3 {[%emt 0:00:14]} exf4 {[%emt 0:00:04]} 21. h3 {[%emt 0:00:14]} Be5 {[%emt 0:00:02]} 22. Rf1 {[%emt 0:00:14]} Bxc3 {[%emt 0:00:04]} 23. Qxc3 {[%emt 0:00:04]} Ne4 {[%emt 0:00:03]} 24. Qe1 {[%emt 0:00:09]} Ng3+ {[%emt 0:00:01]} 25. Rxg3 {[%emt 0:00:02]} fxg3 {[%emt 0:00:02]} 26. Qxg3 {[%emt 0:00:02]} Rad8 {[%emt 0:00:06]} 27. c3 {[%emt 0:00:01]} g6 {[%emt 0:00:03]} 28. Nd4 {[%emt 0:00:01]} Rxd4 {[%emt 0:00:03]} 29. cxd4 {[%emt 0:00:02]} Qxd4 {[%emt 0:00:02]} 30. b4 {[%emt 0:00:03]} Rc8 {[%emt 0:00:13]} 31. Qf3 {[%emt 0:00:02]} Qd7 {[%emt 0:00:09]} 32. Rd1 {[%emt 0:00:06]} Qc7 {[%emt 0:00:01]} 33. h4 {[%emt 0:00:07]} Rd8 {[%emt 0:00:10]} 34. Rf1 {[%emt 0:00:03]} h5 {[%emt 0:00:06]} 35. Qe3 {[%emt 0:00:09]} Qc4 {[%emt 0:00:07]} 36. Qf2 {[%emt 0:00:02]} e5 {[%emt 0:00:08]} 37. Qf6 {[%emt 0:00:03]} Rd4 {[%emt 0:00:04]} 38. g3 {[%emt 0:00:11]} Qd5+ {[%emt 0:00:07]} 39. Kh2 {[%emt 0:00:12]} Rd2+ {[%emt 0:00:05]} 40. Rf2 {[%emt 0:00:01]} Rxf2+ {[%emt 0:00:03]} 41. Qxf2 {[%emt 0:00:01]} e4 {[%emt 0:00:05]} 42. Qf6 {[%emt 0:00:12]} e3 {[%emt 0:00:08]} 43. Qf1 {[%emt 0:00:09]} Qd2+ {[%emt 0:00:02]} 0-1

[Event "RUS-chT Blitz Men 2018"]
[Site "Sochi"]
[Date "2018.10.10"]
[Round "10"]
[White "Moiseenko, Vadim"]
[Black "Iljiushenok, Ilia"]
[Result "1-0"]
[ECO "A05"]
[WhiteElo "2492"]
[BlackElo "2539"]
[Annotator "ChessBase"]
[PlyCount "74"]
[EventDate "2018.10.10"]
[EventType "swiss"]
[EventCountry "RUS"]
[SourceTitle "playchess.com"]
[Source "ChessBase"]
[SourceQuality "1"]
[TimeControl "180+2"]

1. Nf3 {[%emt 0:00:00]} Nf6 {[%emt 0:00:00]} 2. b3 {[%emt 0:00:00]} d6 {[%emt 0:00:04]} 3. d4 {[%emt 0:00:02]} g6 {[%emt 0:00:03]} 4. Bb2 {[%emt 0:00:01]} Bg7 {[%emt 0:00:02]} 5. Nbd2 {[%emt 0:00:02]} O-O {[%emt 0:00:11]} 6. e4 {[%emt 0:00:01]} c5 {[%emt 0:00:13]} 7. dxc5 {[%emt 0:00:04]} dxc5 {[%emt 0:00:01]} 8. Bc4 {[%emt 0:00:13]} Nc6 {[%emt 0:00:05]} 9. O-O {[%emt 0:00:02]} Qc7 {[%emt 0:00:21]} 10. h3 {[%emt 0:00:12]} a6 {[%emt 0:00:35]} 11. Re1 {[%emt 0:00:07]} b5 {[%emt 0:00:01]} 12. Bf1 {[%emt 0:00:07]} Rd8 {[%emt 0:00:04]} 13. Qc1 {[%emt 0:00:01]} Nd4 {[%emt 0:00:11]} 14. a4 {[%emt 0:00:05]} Bb7 {[%emt 0:00:02]} 15. Nxd4 {[%emt 0:00:11]} cxd4 {[%emt 0:00:03]} 16. axb5 {[%emt 0:00:01]} axb5 {[%emt 0:00:07]} 17. Rxa8 {[%emt 0:00:01]} Bxa8 {[%emt 0:00:02]} 18. Bxb5 {[%emt 0:00:02]} Nd7 {[%emt 0:00:07]} 19. Ba3 {[%emt 0:00:22]} Ne5 {[%emt 0:00:15]} 20. Nc4 {[%emt 0:00:16]} d3 {[%emt 0:00:01]} 21. Rd1 {[%emt 0:00:24]} Bxe4 {[%emt 0:00:40]} 22. Nxe5 {[%emt 0:00:06]} Bxe5 {[%emt 0:00:22]} 23. Bxd3 {[%emt 0:00:03]} Bb7 {[%emt 0:00:02]} 24. Bf1 {[%emt 0:00:02]} Rc8 {[%emt 0:00:02]} 25. c4 {[%emt 0:00:05]} Bf4 {[%emt 0:00:08]} 26. Qc3 {[%emt 0:00:04]} Be5 {[%emt 0:00:01]} 27. Qe3 {[%emt 0:00:05]} e6 {[%emt 0:00:00]} 28. b4 {[%emt 0:00:17]} Bf4 {[%emt 0:00:01]} 29. Qd4 {[%emt 0:00:04]} Ra8 {[%emt 0:00:05]} 30. Bb2 {[%emt 0:00:01]} e5 {[%emt 0:00:00]} 31. Qd7 {[%emt 0:00:25]} Qb6 {[%emt 0:00:01]} 32. Bc3 {[%emt 0:00:12]} Bc6 {[%emt 0:00:04]} 33. Qd6 {[%emt 0:00:05]} Ra2 {[%emt 0:00:03]} 34. c5 {[%emt 0:00:01]} Qb7 {[%emt 0:00:04]} 35. Qf6 {[%emt 0:00:10]} Ra8 {[%emt 0:00:03]} 36. g3 {[%emt 0:00:01]} Bh6 {[%emt 0:00:04]} 37. Bxe5 {[%emt 0:00:02]} Kf8 {[%emt 0:00:06]} 1-0

[Event "RUS-chT Blitz Men 2018"]
[Site "Sochi"]
[Date "2018.10.10"]
[Round "10"]
[White "Belyakov, Bogdan"]
[Black "Inozemtsev, Sergei"]
[Result "1-0"]
[ECO "C15"]
[WhiteElo "2458"]
[BlackElo "2310"]
[Annotator "RC"]
[PlyCount "73"]
[EventDate "2018.10.10"]
[EventType "swiss"]
[EventCountry "RUS"]
[SourceTitle "playchess.com"]
[Source "ChessBase"]
[SourceQuality "1"]
[TimeControl "180+2"]

1. e4 {[%emt 0:00:00]} e6 {[%emt 0:00:00]} 2. d4 {[%emt 0:00:00]} d5 {[%emt 0:00:01]} 3. Nc3 {[%emt 0:00:00]} Bb4 {[%emt 0:00:01]} 4. Nge2 {[%emt 0:00:06]} dxe4 {[%emt 0:00:14]} 5. a3 {[%emt 0:00:01]} Be7 {[%emt 0:00:25]} 6. Nxe4 {[%emt 0:00:02]} Nf6 {[%emt 0:00:02]} 7. N2c3 {[%emt 0:00:26]} Nc6 {[%emt 0:00:03]} 8. Be3 {[%emt 0:00:04]} Nd5 {[%emt 0:00:07]} 9. Qg4 {[%emt 0:00:14]} g6 {[%emt 0:00:24]} 10. Qf3 {[%emt 0:00:14]} f5 {[%emt 0:00:05]} 11. Nd2 {[%emt 0:00:23]} Nxe3 {[%emt 0:00:12]} 12. fxe3 {[%emt 0:00:03]} e5 {[%emt 0:00:05]} 13. O-O-O {[%emt 0:00:25]} e4 {[%emt 0:00:06]} 14. Qf2 {[%emt 0:00:06]} Bg5 {[%emt 0:00:34]} 15. h4 {[%emt 0:00:04]} Bh6 {[%emt 0:00:05]} 16. h5 {[%emt 0:00:07]} Qg5 {[%emt 0:00:17]} 17. hxg6 {[%emt 0:00:04]} hxg6 {[%emt 0:00:02]} 18. Nd5 {[%emt 0:00:04]} Kd8 {[%emt 0:00:02]} 19. Nc4 {[%emt 0:00:16]} Bd7 {[%emt 0:00:07]} 20. Ne5 {[%emt 0:00:05]} Nxe5 {[%emt 0:00:10]} 21. dxe5 {[%emt 0:00:01]} Kc8 {[%emt 0:00:02]} 22. Kb1 {[%emt 0:00:04]} a5 {[%emt 0:00:05]} 23. Bc4 {[%emt 0:00:08]} Kb8 {[%emt 0:00:17]} 24. Nf4 {[%emt 0:00:06]} Bc8 {[%emt 0:00:03]} 25. Bf7 {[%emt 0:00:03]} Rd8 {[%emt 0:00:06]} 26. Rxd8 {[%emt 0:00:07]} Qxd8 {[%emt 0:00:01]} 27. Rxh6 {[%emt 0:00:02]} Qd1+ {[%emt 0:00:01]} 28. Ka2 {[%emt 0:00:01]} Ra6 {[%emt 0:00:03]} 29. Qe2 {[%emt 0:00:01]} Qd8 {[%emt 0:00:08]} 30. Bc4 {[%emt 0:00:04]} Rb6 {[%emt 0:00:03]} 31. e6 {[%emt 0:00:03]} Qf6 {[%emt 0:00:01]} 32. c3 {[%emt 0:00:04]} Qe5 {[%emt 0:00:06]} 33. Rxg6 {[%emt 0:00:02]} Ka7 {[%emt 0:00:02]} 34. Rg8 {[%emt 0:00:01]} Bxe6 {[%emt 0:00:02]} 35. Bxe6 {[%emt 0:00:02]} Rxe6 {[%emt 0:00:01]} 36. Qc4 {[%emt 0:00:15]} Rb6 {[%emt 0:00:03]} 37. a4 {[%emt 0:00:01]} 1-0

[Event "RUS-chT Blitz Men 2018"]
[Site "Sochi"]
[Date "2018.10.10"]
[Round "10"]
[White "Dilmukhametov, Artur"]
[Black "Sergeyev, Alexander"]
[Result "1-0"]
[ECO "A45"]
[WhiteElo "2353"]
[BlackElo "2397"]
[Annotator "NA"]
[PlyCount "66"]
[EventDate "2018.10.10"]
[EventType "swiss"]
[EventCountry "RUS"]
[SourceTitle "playchess.com"]
[Source "ChessBase"]
[SourceQuality "1"]
[TimeControl "180+2"]

1. d4 {[%emt 0:00:00]} Nf6 {[%emt 0:00:00]} 2. Nc3 {[%emt 0:00:01]} d5 {[%emt 0:00:03]} 3. Bf4 {[%emt 0:00:02]} e6 {[%emt 0:00:05]} 4. e3 {[%emt 0:00:01]} Bd6 {[%emt 0:00:04]} 5. Qf3 {[%emt 0:00:01]} O-O {[%emt 0:00:11]} 6. g4 {[%emt 0:00:01]} c5 {[%emt 0:00:21]} 7. g5 {[%emt 0:00:05]} Ne4 {[%emt 0:00:11]} 8. Nxe4 {[%emt 0:00:20]} dxe4 {[%emt 0:00:03]} 9. Qxe4 {[%emt 0:00:11]} Bxf4 {[%emt 0:00:07]} 10. Qxf4 {[%emt 0:00:06]} cxd4 {[%emt 0:00:04]} 11. exd4 {[%emt 0:00:10]} e5 {[%emt 0:00:12]} 12. dxe5 {[%emt 0:00:08]} Nc6 {[%emt 0:00:02]} 13. Nf3 {[%emt 0:00:25]} Qb6 {[%emt 0:00:20]} 14. O-O-O {[%emt 0:00:29]} Be6 {[%emt 0:00:02]} 15. Nd4 {[%emt 0:00:23]} Rac8 {[%emt 0:00:27]} 16. Nxc6 {[%emt 0:00:07]} Rxc6 {[%emt 0:00:22]} 17. Bg2 {[%emt 0:00:13]} Rc4 {[%emt 0:00:08]} 18. Qe3 {[%emt 0:00:08]} Qc7 {[%emt 0:00:14]} 19. c3 {[%emt 0:00:03]} b5 {[%emt 0:00:08]} 20. Bd5 {[%emt 0:00:13]} Bxd5 {[%emt 0:00:04]} 21. Rxd5 {[%emt 0:00:00]} b4 {[%emt 0:00:01]} 22. Rd3 {[%emt 0:00:08]} Rc8 {[%emt 0:00:04]} 23. e6 {[%emt 0:00:10]} bxc3 {[%emt 0:00:11]} 24. Rxc3 {[%emt 0:00:14]} Rxc3+ {[%emt 0:00:03]} 25. bxc3 {[%emt 0:00:00]} fxe6 {[%emt 0:00:03]} 26. Qxe6+ {[%emt 0:00:03]} Kh8 {[%emt 0:00:01]} 27. Qe3 {[%emt 0:00:03]} Qa5 {[%emt 0:00:06]} 28. Kb2 {[%emt 0:00:01]} Rb8+ {[%emt 0:00:03]} 29. Ka1 {[%emt 0:00:01]} Qb5 {[%emt 0:00:05]} 30. Qd2 {[%emt 0:00:01]} a5 {[%emt 0:00:06]} 31. Rd1 {[%emt 0:00:01]} Qb6 {[%emt 0:00:04]} 32. Qc2 {[%emt 0:00:10]} Rf8 {[%emt 0:00:02]} 33. h4 {[%emt 0:00:03]} Qc5 {[%emt 0:00:09]} 1-0